Department family,Entity,Date,Expense Type,Expense area,Supplier,Transaction number,AP Amount (�)
Department of Health,NHS Barnsley CCG,31/03/2018,C&M-APMS Contract Value,PRC DELEGATED CO-COMMISSIONING,BARNSLEY HEALTHCARE FEDERATION,21217267,"25,782.48 "
Department of Health,NHS Barnsley CCG,31/03/2018,C&M-APMS OOH Opt Outs,PRC DELEGATED CO-COMMISSIONING,BARNSLEY HEALTHCARE FEDERATION,21217267,0.05 
Department of Health,NHS Barnsley CCG,31/03/2018,C&M-APMS Prem Actual Rent,PRC DELEGATED CO-COMMISSIONING,BARNSLEY HEALTHCARE FEDERATION,21217267,"1,310.42 "
Department of Health,NHS Barnsley CCG,31/03/2018,C&M-PMS Prem Actual Rent,PRC DELEGATED CO-COMMISSIONING,BARNSLEY HEALTHCARE FEDERATION,21217267,"1,310.42 "
Department of Health,NHS Barnsley CCG,31/03/2018,C&M-PMS QOF Aspiration,PRC DELEGATED CO-COMMISSIONING,BARNSLEY HEALTHCARE FEDERATION,21217267,"2,442.47 "
Department of Health,NHS Barnsley CCG,31/03/2018,C&M-APMS Contract Value,PRC DELEGATED CO-COMMISSIONING,BARNSLEY HEALTHCARE FEDERATION,21217269,"30,681.86 "
Department of Health,NHS Barnsley CCG,31/03/2018,C&M-APMS Prem Actual Rent,PRC DELEGATED CO-COMMISSIONING,BARNSLEY HEALTHCARE FEDERATION,21217269,"2,150.00 "
Department of Health,NHS Barnsley CCG,31/03/2018,C&M-APMS Prem Healthcentre Rent,PRC DELEGATED CO-COMMISSIONING,BARNSLEY HEALTHCARE FEDERATION,21217269,"7,057.88 "
Department of Health,NHS Barnsley CCG,31/03/2018,C&M-PMS Prem Actual Rent,PRC DELEGATED CO-COMMISSIONING,BARNSLEY HEALTHCARE FEDERATION,21217269,"2,150.00 "
Department of Health,NHS Barnsley CCG,31/03/2018,C&M-PMS Prem Healthcentre Rent,PRC DELEGATED CO-COMMISSIONING,BARNSLEY HEALTHCARE FEDERATION,21217269,"6,795.48 "
Department of Health,NHS Barnsley CCG,31/03/2018,C&M-PMS QOF Aspiration,PRC DELEGATED CO-COMMISSIONING,BARNSLEY HEALTHCARE FEDERATION,21217269,"2,184.66 "
Department of Health,NHS Barnsley CCG,31/03/2018,C&M-APMS Contract Value,PRC DELEGATED CO-COMMISSIONING,BARNSLEY HEALTHCARE FEDERATION,21217271,"27,903.65 "
Department of Health,NHS Barnsley CCG,31/03/2018,C&M-APMS OOH Opt Outs,PRC DELEGATED CO-COMMISSIONING,BARNSLEY HEALTHCARE FEDERATION,21217271,11.91 
Department of Health,NHS Barnsley CCG,31/03/2018,C&M-APMS Prem Actual Rent,PRC DELEGATED CO-COMMISSIONING,BARNSLEY HEALTHCARE FEDERATION,21217271,"6,200.00 "
Department of Health,NHS Barnsley CCG,31/03/2018,C&M-PMS Prem Actual Rent,PRC DELEGATED CO-COMMISSIONING,BARNSLEY HEALTHCARE FEDERATION,21217271,"6,200.00 "
Department of Health,NHS Barnsley CCG,31/03/2018,C&M-PMS QOF Aspiration,PRC DELEGATED CO-COMMISSIONING,BARNSLEY HEALTHCARE FEDERATION,21217271,"2,549.33 "
Department of Health,NHS Barnsley CCG,31/03/2018,Other Gen Supplies & Srv,COMMISSIONING SCHEMES,BARNSLEY HEALTHCARE FEDERATION,21225635,"72,500.00 "
Department of Health,NHS Barnsley CCG,31/03/2018,Other Gen Supplies & Srv,COMMISSIONING SCHEMES,BARNSLEY HEALTHCARE FEDERATION,21225668,"97,000.00 "
Department of Health,NHS Barnsley CCG,31/03/2018,Clinical&Medical-Commercial Sector,OUT OF HOURS,BARNSLEY HEALTHCARE FEDERATION,21427356,"168,851.70 "
Department of Health,NHS Barnsley CCG,31/03/2018,Miscellaneous Expenditure (L9),PCTF Revenue,BARNSLEY HEALTHCARE FEDERATION,21427374,"127,632.91 "
Department of Health,NHS Barnsley CCG,31/03/2018,C&M-PMS Contract Value,PRC DELEGATED CO-COMMISSIONING,BARNSLEY HEALTHCARE FEDERATION CIC (GOLDTHORPE),21222390,"40,116.67 "
Department of Health,NHS Barnsley CCG,31/03/2018,C&M-PMS Out of Hours Opt Outs,PRC DELEGATED CO-COMMISSIONING,BARNSLEY HEALTHCARE FEDERATION CIC (GOLDTHORPE),21222390,7.08 
Department of Health,NHS Barnsley CCG,31/03/2018,C&M-PMS Prem Healthcentre Rent,PRC DELEGATED CO-COMMISSIONING,BARNSLEY HEALTHCARE FEDERATION CIC (GOLDTHORPE),21222390,"11,654.20 "
Department of Health,NHS Barnsley CCG,31/03/2018,C&M-PMS QOF Aspiration,PRC DELEGATED CO-COMMISSIONING,BARNSLEY HEALTHCARE FEDERATION CIC (GOLDTHORPE),21222390,"4,628.16 "
Department of Health,NHS Barnsley CCG,31/03/2018,Hcare Srv Rec Fdtn Trust-CQUIN,ACUTE COMMISSIONING,BARNSLEY HOSPITAL NHS FOUNDATION TRUST,21172536,"208,739.00 "
Department of Health,NHS Barnsley CCG,31/03/2018,Hcare Srv Rec Fdtn Trust-Contract Baseline,ACUTE COMMISSIONING,BARNSLEY HOSPITAL NHS FOUNDATION TRUST,21172536,"11,030,833.00 "
Department of Health,NHS Barnsley CCG,31/03/2018,Hcare Srv Rec Fdtn Trust-CQUIN,ACUTE COMMISSIONING,BARNSLEY HOSPITAL NHS FOUNDATION TRUST,21172537,"8,678.00 "
Department of Health,NHS Barnsley CCG,31/03/2018,Hcare Srv Rec Fdtn Trust-Contract Baseline,ACUTE COMMISSIONING,BARNSLEY HOSPITAL NHS FOUNDATION TRUST,21172537,"562,297.00 "
Department of Health,NHS Barnsley CCG,31/03/2018,Hcare Srv Rec Fdtn Trust-CQUIN,ACUTE COMMISSIONING,BARNSLEY HOSPITAL NHS FOUNDATION TRUST,21172538,"52,183.00 "
Department of Health,NHS Barnsley CCG,31/03/2018,Telecoms-Data lines,PRIMARY CARE IT,BARNSLEY HOSPITAL NHS FOUNDATION TRUST,21427437,"30,442.87 "
Department of Health,NHS Barnsley CCG,31/03/2018,Hcare Srv Rec Fdtn Trust-Contract Baseline,LONG TERM CONDITIONS,BARNSLEY HOSPITAL NHS FOUNDATION TRUST,21439624,"360,165.00 "
Department of Health,NHS Barnsley CCG,31/03/2018,Computer Software/License,INTERMEDIATE CARE,BARNSLEY HOSPITAL NHS FOUNDATION TRUST,21457347,"32,696.00 "
Department of Health,NHS Barnsley CCG,31/03/2018,Computer Software/License,INTERMEDIATE CARE,BARNSLEY HOSPITAL NHS FOUNDATION TRUST,21457349,"31,385.00 "
Department of Health,NHS Barnsley CCG,31/03/2018,Clinical&Medical-Serv Recd-F Trsts,INTERMEDIATE CARE,BARNSLEY HOSPITAL NHS FOUNDATION TRUST,21530905,"739,333.00 "
Department of Health,NHS Barnsley CCG,31/03/2018,Clinical&Medical-Serv Recd-F Trsts,INTERMEDIATE CARE,BARNSLEY HOSPITAL NHS FOUNDATION TRUST,21530906,"105,875.00 "
Department of Health,NHS Barnsley CCG,28/02/2018,Hcare Srv Rec Fdtn Trust-CQUIN,ACUTE COMMISSIONING,BARNSLEY HOSPITAL NHS FOUNDATION TRUST,21084155,"54,228.00 "
Department of Health,NHS Barnsley CCG,28/02/2018,Hcare Srv Rec Fdtn Trust-Contract Baseline,ACUTE COMMISSIONING,BARNSLEY HOSPITAL NHS FOUNDATION TRUST,21084155,"2,707,448.00 "
Department of Health,NHS Barnsley CCG,31/03/2018,Cont Care-CCG,Children's Continuing Care Personal Health Budgets,BARNSLEY METROPOLITAN BOROUGH COUNCIL,21147517,"113,608.26 "
Department of Health,NHS Barnsley CCG,31/03/2018,Continuing Care- Equipment,Children's Continuing Care,BARNSLEY METROPOLITAN BOROUGH COUNCIL,21147517,"2,709.04 "
Department of Health,NHS Barnsley CCG,31/03/2018,Chrgs from SLA,COMMISSIONING,BARNSLEY METROPOLITAN BOROUGH COUNCIL,21147527,"16,670.00 "
Department of Health,NHS Barnsley CCG,31/03/2018,Clinical&Medical-Othe Public Sector,CHILD AND ADOLESCENT MENTAL HEALTH,BARNSLEY METROPOLITAN BOROUGH COUNCIL,21147527,"17,876.00 "
Department of Health,NHS Barnsley CCG,31/03/2018,Clinical&Medical-Othe Public Sector,COMMISSIONING - NON ACUTE,BARNSLEY METROPOLITAN BOROUGH COUNCIL,21147527,"358,765.00 "
Department of Health,NHS Barnsley CCG,31/03/2018,Clinical&Medical-Othe Public Sector,COMMUNITY SERVICES,BARNSLEY METROPOLITAN BOROUGH COUNCIL,21147527,"15,784.00 "
Department of Health,NHS Barnsley CCG,31/03/2018,Clinical&Medical-Othe Public Sector,MENTAL HEALTH SERVICES - OTHER,BARNSLEY METROPOLITAN BOROUGH COUNCIL,21147527,"9,883.00 "
Department of Health,NHS Barnsley CCG,31/03/2018,Expenditure on Drugs Action Team,MENTAL HEALTH SERVICES - SPECIALIST SERVICES,BARNSLEY METROPOLITAN BOROUGH COUNCIL,21147527,"41,667.00 "
Department of Health,NHS Barnsley CCG,31/03/2018,GROSSRECOVEMPBEN - SALARIES & WAGES,COLLABORATIVE COMMISSIONING,BARNSLEY METROPOLITAN BOROUGH COUNCIL,21147527,"(5,219.00)"
Department of Health,NHS Barnsley CCG,31/03/2018,Local AuthorityRevenue-Non-Contract,COMMUNITY SERVICES,BARNSLEY METROPOLITAN BOROUGH COUNCIL,21147527,"(2,663.00)"
Department of Health,NHS Barnsley CCG,31/03/2018,Other Gen Supplies & Srv,PROGRAMME PROJECTS,BARNSLEY METROPOLITAN BOROUGH COUNCIL,21147527,"10,000.00 "
Department of Health,NHS Barnsley CCG,31/03/2018,Participation Fees,COMMUNITY SERVICES,BARNSLEY METROPOLITAN BOROUGH COUNCIL,21147527,"11,750.00 "
Department of Health,NHS Barnsley CCG,31/03/2018,Services From Local Authorities,COMMISSIONING - NON ACUTE,BARNSLEY METROPOLITAN BOROUGH COUNCIL,21147527,"6,304.00 "
Department of Health,NHS Barnsley CCG,31/03/2018,Soc Care-Other Soc Care,COMMUNITY SERVICES,BARNSLEY METROPOLITAN BOROUGH COUNCIL,21147527,"121,121.00 "
Department of Health,NHS Barnsley CCG,31/03/2018,Soc Care-Re-ablement services,COMMUNITY SERVICES,BARNSLEY METROPOLITAN BOROUGH COUNCIL,21147527,"192,250.00 "
Department of Health,NHS Barnsley CCG,31/03/2018,Social Care-Res Long Stay Exp,COMMUNITY SERVICES,BARNSLEY METROPOLITAN BOROUGH COUNCIL,21147527,"412,083.00 "
Department of Health,NHS Barnsley CCG,31/03/2018,Social Care-Res Short Stay Exp,COMMUNITY SERVICES,BARNSLEY METROPOLITAN BOROUGH COUNCIL,21147527,"67,500.00 "
Department of Health,NHS Barnsley CCG,31/03/2018,Clinical&Medical-Othe Public Sector,Learning Difficulties - S117,BARNSLEY METROPOLITAN BOROUGH COUNCIL,21236910,"56,083.65 "
Department of Health,NHS Barnsley CCG,31/03/2018,Clinical&Medical-Othe Public Sector,Learning Difficulties - S117,BARNSLEY METROPOLITAN BOROUGH COUNCIL,21236960,"(33,380.99)"
Department of Health,NHS Barnsley CCG,31/03/2018,Clinical&Medical-Othe Public Sector,Learning Difficulties - S117,BARNSLEY METROPOLITAN BOROUGH COUNCIL,21237111,"31,814.48 "
Department of Health,NHS Barnsley CCG,31/03/2018,Chrgs from SLA,COMMISSIONING,BARNSLEY METROPOLITAN BOROUGH COUNCIL,21330720,"16,667.00 "
Department of Health,NHS Barnsley CCG,31/03/2018,Clinical&Medical-Othe Public Sector,CHILD AND ADOLESCENT MENTAL HEALTH,BARNSLEY METROPOLITAN BOROUGH COUNCIL,21330720,"17,876.00 "
Department of Health,NHS Barnsley CCG,31/03/2018,Clinical&Medical-Othe Public Sector,COMMISSIONING - NON ACUTE,BARNSLEY METROPOLITAN BOROUGH COUNCIL,21330720,"358,762.00 "
Department of Health,NHS Barnsley CCG,31/03/2018,Clinical&Medical-Othe Public Sector,COMMUNITY SERVICES,BARNSLEY METROPOLITAN BOROUGH COUNCIL,21330720,"15,784.00 "
Department of Health,NHS Barnsley CCG,31/03/2018,Clinical&Medical-Othe Public Sector,MENTAL HEALTH SERVICES - OTHER,BARNSLEY METROPOLITAN BOROUGH COUNCIL,21330720,"9,883.00 "
Department of Health,NHS Barnsley CCG,31/03/2018,Expenditure on Drugs Action Team,MENTAL HEALTH SERVICES - SPECIALIST SERVICES,BARNSLEY METROPOLITAN BOROUGH COUNCIL,21330720,"541,666.00 "
Department of Health,NHS Barnsley CCG,31/03/2018,GROSSRECOVEMPBEN - SALARIES & WAGES,COLLABORATIVE COMMISSIONING,BARNSLEY METROPOLITAN BOROUGH COUNCIL,21330720,"(5,219.00)"
Department of Health,NHS Barnsley CCG,31/03/2018,Local AuthorityRevenue-Non-Contract,COMMUNITY SERVICES,BARNSLEY METROPOLITAN BOROUGH COUNCIL,21330720,"(2,663.00)"
Department of Health,NHS Barnsley CCG,31/03/2018,Participation Fees,COMMUNITY SERVICES,BARNSLEY METROPOLITAN BOROUGH COUNCIL,21330720,"11,750.00 "
Department of Health,NHS Barnsley CCG,31/03/2018,Services From Local Authorities,COMMISSIONING - NON ACUTE,BARNSLEY METROPOLITAN BOROUGH COUNCIL,21330720,"6,304.00 "
Department of Health,NHS Barnsley CCG,31/03/2018,Soc Care-Other Soc Care,COMMUNITY SERVICES,BARNSLEY METROPOLITAN BOROUGH COUNCIL,21330720,"203,515.00 "
Department of Health,NHS Barnsley CCG,31/03/2018,Soc Care-Re-ablement services,COMMUNITY SERVICES,BARNSLEY METROPOLITAN BOROUGH COUNCIL,21330720,"192,249.00 "
Department of Health,NHS Barnsley CCG,31/03/2018,Social Care-Res Long Stay Exp,COMMUNITY SERVICES,BARNSLEY METROPOLITAN BOROUGH COUNCIL,21330720,"582,082.00 "
Department of Health,NHS Barnsley CCG,31/03/2018,Social Care-Res Short Stay Exp,COMMUNITY SERVICES,BARNSLEY METROPOLITAN BOROUGH COUNCIL,21330720,"67,499.00 "
Department of Health,NHS Barnsley CCG,31/03/2018,Cont Care- Children,CHC CHILDREN,BARNSLEY METROPOLITAN BOROUGH COUNCIL,21404749,"44,280.59 "
Department of Health,NHS Barnsley CCG,31/03/2018,Clinical&Medical-Voluntary Sector,CHILD AND ADOLESCENT MENTAL HEALTH,CHILDREN & YOUNG PEOPLES EMPOWERMENT PROJECT LTD,21330649,"42,600.00 "
Department of Health,NHS Barnsley CCG,31/03/2018,Clinical&Medical-Commercial Sector,ACUTE COMMISSIONING,CLAREMONT HOSPITAL,21185991,"54,938.00 "
Department of Health,NHS Barnsley CCG,28/02/2018,Voids and Subsidies,RECHARGES NHS PROPERTY SERVICES LTD,COMMUNITY HEALTH PARTNERSHIPS LTD,21099070,"52,897.77 "
Department of Health,NHS Barnsley CCG,31/03/2018,C&M-GMS Global Sum,PRC DELEGATED CO-COMMISSIONING,NHS BARNSLEY CCG GP PRACTICE,21474329,"78,966.58 "
Department of Health,NHS Barnsley CCG,31/03/2018,C&M-GMS PCO Locum Adop/Pat/Mat,PRC DELEGATED CO-COMMISSIONING,NHS BARNSLEY CCG GP PRACTICE,21474329,"3,876.92 "
Department of Health,NHS Barnsley CCG,31/03/2018,C&M-GMS PCO Seniority,PRC DELEGATED CO-COMMISSIONING,NHS BARNSLEY CCG GP PRACTICE,21474329,526.62 
Department of Health,NHS Barnsley CCG,31/03/2018,C&M-GMS Prem Healthcentre Rent,PRC DELEGATED CO-COMMISSIONING,NHS BARNSLEY CCG GP PRACTICE,21474329,"25,297.00 "
Department of Health,NHS Barnsley CCG,31/03/2018,C&M-GMS QOF Aspiration,PRC DELEGATED CO-COMMISSIONING,NHS BARNSLEY CCG GP PRACTICE,21474329,"7,839.58 "
Department of Health,NHS Barnsley CCG,31/03/2018,C&M-PMS Contract Value,PRC DELEGATED CO-COMMISSIONING,NHS BARNSLEY CCG GP PRACTICE,21217273,"48,259.80 "
Department of Health,NHS Barnsley CCG,31/03/2018,C&M-PMS Out of Hours Opt Outs,PRC DELEGATED CO-COMMISSIONING,NHS BARNSLEY CCG GP PRACTICE,21217273,260.01 
Department of Health,NHS Barnsley CCG,31/03/2018,C&M-PMS PCO Seniority,PRC DELEGATED CO-COMMISSIONING,NHS BARNSLEY CCG GP PRACTICE,21217273,165.08 
Department of Health,NHS Barnsley CCG,31/03/2018,C&M-PMS Prem Rates,PRC DELEGATED CO-COMMISSIONING,NHS BARNSLEY CCG GP PRACTICE,21217273,"2,182.00 "
Department of Health,NHS Barnsley CCG,31/03/2018,C&M-PMS QOF Aspiration,PRC DELEGATED CO-COMMISSIONING,NHS BARNSLEY CCG GP PRACTICE,21217273,"5,260.11 "
Department of Health,NHS Barnsley CCG,31/03/2018,C&M-PMS Contract Value,PRC DELEGATED CO-COMMISSIONING,NHS BARNSLEY CCG GP PRACTICE,21217244,"88,976.24 "
Department of Health,NHS Barnsley CCG,31/03/2018,C&M-PMS DES Extended Hours Access,PRC DELEGATED CO-COMMISSIONING,NHS BARNSLEY CCG GP PRACTICE,21217244,"5,095.80 "
Department of Health,NHS Barnsley CCG,31/03/2018,C&M-PMS Out of Hours Opt Outs,PRC DELEGATED CO-COMMISSIONING,NHS BARNSLEY CCG GP PRACTICE,21217244,54.68 
Department of Health,NHS Barnsley CCG,31/03/2018,C&M-PMS PCO Seniority,PRC DELEGATED CO-COMMISSIONING,NHS BARNSLEY CCG GP PRACTICE,21217244,"1,342.55 "
Department of Health,NHS Barnsley CCG,31/03/2018,C&M-PMS Prem Healthcentre Rent,PRC DELEGATED CO-COMMISSIONING,NHS BARNSLEY CCG GP PRACTICE,21217244,"20,733.65 "
Department of Health,NHS Barnsley CCG,31/03/2018,C&M-PMS Prem Notional Rent,PRC DELEGATED CO-COMMISSIONING,NHS BARNSLEY CCG GP PRACTICE,21217244,"1,987.50 "
Department of Health,NHS Barnsley CCG,31/03/2018,C&M-PMS Prem Rates,PRC DELEGATED CO-COMMISSIONING,NHS BARNSLEY CCG GP PRACTICE,21217244,289.00 
Department of Health,NHS Barnsley CCG,31/03/2018,C&M-PMS QOF Aspiration,PRC DELEGATED CO-COMMISSIONING,NHS BARNSLEY CCG GP PRACTICE,21217244,"10,231.70 "
Department of Health,NHS Barnsley CCG,31/03/2018,C&M-PMS Contract Value,PRC DELEGATED CO-COMMISSIONING,NHS BARNSLEY CCG GP PRACTICE,21217248,"51,026.64 "
Department of Health,NHS Barnsley CCG,31/03/2018,C&M-PMS DES Extended Hours Access,PRC DELEGATED CO-COMMISSIONING,NHS BARNSLEY CCG GP PRACTICE,21217248,"3,207.68 "
Department of Health,NHS Barnsley CCG,31/03/2018,C&M-PMS Out of Hours Opt Outs,PRC DELEGATED CO-COMMISSIONING,NHS BARNSLEY CCG GP PRACTICE,21217248,8.80 
Department of Health,NHS Barnsley CCG,31/03/2018,C&M-PMS PCO Locum Adop/Pat/Mat,PRC DELEGATED CO-COMMISSIONING,NHS BARNSLEY CCG GP PRACTICE,21217248,"6,936.72 "
Department of Health,NHS Barnsley CCG,31/03/2018,C&M-PMS PCO Seniority,PRC DELEGATED CO-COMMISSIONING,NHS BARNSLEY CCG GP PRACTICE,21217248,"2,545.19 "
Department of Health,NHS Barnsley CCG,31/03/2018,C&M-PMS Prem Healthcentre Rent,PRC DELEGATED CO-COMMISSIONING,NHS BARNSLEY CCG GP PRACTICE,21217248,"21,557.02 "
Department of Health,NHS Barnsley CCG,31/03/2018,C&M-PMS QOF Aspiration,PRC DELEGATED CO-COMMISSIONING,NHS BARNSLEY CCG GP PRACTICE,21217248,"5,374.86 "
Department of Health,NHS Barnsley CCG,31/03/2018,C&M-GMS DES Extended Hours Access,PRC DELEGATED CO-COMMISSIONING,NHS BARNSLEY CCG GP PRACTICE,21474331,"4,643.13 "
Department of Health,NHS Barnsley CCG,31/03/2018,C&M-GMS Global Sum,PRC DELEGATED CO-COMMISSIONING,NHS BARNSLEY CCG GP PRACTICE,21474331,"71,854.71 "
Department of Health,NHS Barnsley CCG,31/03/2018,C&M-GMS PCO Seniority,PRC DELEGATED CO-COMMISSIONING,NHS BARNSLEY CCG GP PRACTICE,21474331,"3,771.42 "
Department of Health,NHS Barnsley CCG,31/03/2018,C&M-GMS Prem Notional Rent,PRC DELEGATED CO-COMMISSIONING,NHS BARNSLEY CCG GP PRACTICE,21474331,"4,558.08 "
Department of Health,NHS Barnsley CCG,31/03/2018,C&M-GMS QOF Aspiration,PRC DELEGATED CO-COMMISSIONING,NHS BARNSLEY CCG GP PRACTICE,21474331,"8,873.87 "
Department of Health,NHS Barnsley CCG,31/03/2018,C&M-GMS DES Extended Hours Access,PRC DELEGATED CO-COMMISSIONING,NHS BARNSLEY CCG GP PRACTICE,21474333,"5,287.70 "
Department of Health,NHS Barnsley CCG,31/03/2018,C&M-GMS DES Learn Dsblty Hlth Chk,PRC DELEGATED CO-COMMISSIONING,NHS BARNSLEY CCG GP PRACTICE,21474333,140.00 
Department of Health,NHS Barnsley CCG,31/03/2018,C&M-GMS Global Sum,PRC DELEGATED CO-COMMISSIONING,NHS BARNSLEY CCG GP PRACTICE,21474333,"88,736.97 "
Department of Health,NHS Barnsley CCG,31/03/2018,C&M-GMS PCO Seniority,PRC DELEGATED CO-COMMISSIONING,NHS BARNSLEY CCG GP PRACTICE,21474333,"2,018.87 "
Department of Health,NHS Barnsley CCG,31/03/2018,C&M-GMS Prem Healthcentre Rent,PRC DELEGATED CO-COMMISSIONING,NHS BARNSLEY CCG GP PRACTICE,21474333,"3,289.55 "
Department of Health,NHS Barnsley CCG,31/03/2018,C&M-GMS Prem Notional Rent,PRC DELEGATED CO-COMMISSIONING,NHS BARNSLEY CCG GP PRACTICE,21474333,"1,572.92 "
Department of Health,NHS Barnsley CCG,31/03/2018,C&M-GMS Prem Water Rates,PRC DELEGATED CO-COMMISSIONING,NHS BARNSLEY CCG GP PRACTICE,21474333,173.65 
Department of Health,NHS Barnsley CCG,31/03/2018,C&M-GMS QOF Aspiration,PRC DELEGATED CO-COMMISSIONING,NHS BARNSLEY CCG GP PRACTICE,21474333,"8,682.82 "
Department of Health,NHS Barnsley CCG,31/03/2018,C&M-PMS GP Statutory Levy,PRC DELEGATED CO-COMMISSIONING,NHS BARNSLEY CCG GP PRACTICE,21217251,(566.98)
Department of Health,NHS Barnsley CCG,31/03/2018,C&M-PMS Out of Hours Opt Outs,PRC DELEGATED CO-COMMISSIONING,NHS BARNSLEY CCG GP PRACTICE,21217251,"(6,120.93)"
Department of Health,NHS Barnsley CCG,31/03/2018,C&M-PMS Voluntary Levy,PRC DELEGATED CO-COMMISSIONING,NHS BARNSLEY CCG GP PRACTICE,21217251,(99.17)
Department of Health,NHS Barnsley CCG,31/03/2018,ME - PMS TPS Added Years Adj EEs,PRC DELEGATED CO-COMMISSIONING,NHS BARNSLEY CCG GP PRACTICE,21217251,(610.96)
Department of Health,NHS Barnsley CCG,31/03/2018,ME-PMS GP Pension EEs-PMS,PRC DELEGATED CO-COMMISSIONING,NHS BARNSLEY CCG GP PRACTICE,21217251,"(14,526.79)"
Department of Health,NHS Barnsley CCG,31/03/2018,ME-PMS GP Pension ERs Adjs - PMS,PRC DELEGATED CO-COMMISSIONING,NHS BARNSLEY CCG GP PRACTICE,21217251,"(15,370.39)"
Department of Health,NHS Barnsley CCG,31/03/2018,C&M-PMS Contract Value,PRC DELEGATED CO-COMMISSIONING,NHS BARNSLEY CCG GP PRACTICE,21217252,"129,255.20 "
Department of Health,NHS Barnsley CCG,31/03/2018,C&M-PMS DES Extended Hours Access,PRC DELEGATED CO-COMMISSIONING,NHS BARNSLEY CCG GP PRACTICE,21217252,"7,974.30 "
Department of Health,NHS Barnsley CCG,31/03/2018,C&M-PMS Funding Differential Review,PRC DELEGATED CO-COMMISSIONING,NHS BARNSLEY CCG GP PRACTICE,21217252,94.00 
Department of Health,NHS Barnsley CCG,31/03/2018,C&M-PMS PCO Seniority,PRC DELEGATED CO-COMMISSIONING,NHS BARNSLEY CCG GP PRACTICE,21217252,"3,608.49 "
Department of Health,NHS Barnsley CCG,31/03/2018,C&M-PMS Prem Notional Rent,PRC DELEGATED CO-COMMISSIONING,NHS BARNSLEY CCG GP PRACTICE,21217252,"6,333.33 "
Department of Health,NHS Barnsley CCG,31/03/2018,C&M-PMS Prem Rates,PRC DELEGATED CO-COMMISSIONING,NHS BARNSLEY CCG GP PRACTICE,21217252,489.20 
Department of Health,NHS Barnsley CCG,31/03/2018,C&M-PMS QOF Aspiration,PRC DELEGATED CO-COMMISSIONING,NHS BARNSLEY CCG GP PRACTICE,21217252,"14,324.80 "
Department of Health,NHS Barnsley CCG,31/03/2018,C&M-GMS Global Sum,PRC DELEGATED CO-COMMISSIONING,NHS BARNSLEY CCG GP PRACTICE,21473557,"20,637.16 "
Department of Health,NHS Barnsley CCG,31/03/2018,C&M-GMS MPIG Correction Factor,PRC DELEGATED CO-COMMISSIONING,NHS BARNSLEY CCG GP PRACTICE,21473557,607.19 
Department of Health,NHS Barnsley CCG,31/03/2018,C&M-GMS PCO Seniority,PRC DELEGATED CO-COMMISSIONING,NHS BARNSLEY CCG GP PRACTICE,21473557,848.05 
Department of Health,NHS Barnsley CCG,31/03/2018,C&M-GMS Prem Healthcentre Rent,PRC DELEGATED CO-COMMISSIONING,NHS BARNSLEY CCG GP PRACTICE,21473557,"2,198.57 "
Department of Health,NHS Barnsley CCG,31/03/2018,C&M-GMS QOF Aspiration,PRC DELEGATED CO-COMMISSIONING,NHS BARNSLEY CCG GP PRACTICE,21473557,"2,409.31 "
Department of Health,NHS Barnsley CCG,31/03/2018,ME-GMS GP Pension EEs,PRC DELEGATED CO-COMMISSIONING,NHS BARNSLEY CCG GP PRACTICE,21473557,"1,501.56 "
Department of Health,NHS Barnsley CCG,31/03/2018,ME-GMS GP Pension ERs Adjustments,PRC DELEGATED CO-COMMISSIONING,NHS BARNSLEY CCG GP PRACTICE,21473557,450.18 
Department of Health,NHS Barnsley CCG,31/03/2018,C&M-GMS DES Extended Hours Access,PRC DELEGATED CO-COMMISSIONING,NHS BARNSLEY CCG GP PRACTICE,21474335,"2,352.68 "
Department of Health,NHS Barnsley CCG,31/03/2018,C&M-GMS Global Sum,PRC DELEGATED CO-COMMISSIONING,NHS BARNSLEY CCG GP PRACTICE,21474335,"38,787.56 "
Department of Health,NHS Barnsley CCG,31/03/2018,C&M-GMS PCO Seniority,PRC DELEGATED CO-COMMISSIONING,NHS BARNSLEY CCG GP PRACTICE,21474335,262.38 
Department of Health,NHS Barnsley CCG,31/03/2018,C&M-GMS Prem Notional Rent,PRC DELEGATED CO-COMMISSIONING,NHS BARNSLEY CCG GP PRACTICE,21474335,"1,562.50 "
Department of Health,NHS Barnsley CCG,31/03/2018,C&M-GMS Prem Rates,PRC DELEGATED CO-COMMISSIONING,NHS BARNSLEY CCG GP PRACTICE,21474335,"1,072.00 "
Department of Health,NHS Barnsley CCG,31/03/2018,C&M-GMS QOF Aspiration,PRC DELEGATED CO-COMMISSIONING,NHS BARNSLEY CCG GP PRACTICE,21474335,"4,292.81 "
Department of Health,NHS Barnsley CCG,31/03/2018,C&M-PMS Contract Value,PRC DELEGATED CO-COMMISSIONING,NHS BARNSLEY CCG GP PRACTICE,21217250,"39,273.48 "
Department of Health,NHS Barnsley CCG,31/03/2018,C&M-PMS DES Extended Hours Access,PRC DELEGATED CO-COMMISSIONING,NHS BARNSLEY CCG GP PRACTICE,21217250,"2,225.38 "
Department of Health,NHS Barnsley CCG,31/03/2018,C&M-PMS Funding Differential Review,PRC DELEGATED CO-COMMISSIONING,NHS BARNSLEY CCG GP PRACTICE,21217250,"2,537.08 "
Department of Health,NHS Barnsley CCG,31/03/2018,C&M-PMS Out of Hours Opt Outs,PRC DELEGATED CO-COMMISSIONING,NHS BARNSLEY CCG GP PRACTICE,21217250,61.70 
Department of Health,NHS Barnsley CCG,31/03/2018,C&M-PMS PCO Seniority,PRC DELEGATED CO-COMMISSIONING,NHS BARNSLEY CCG GP PRACTICE,21217250,"2,856.34 "
Department of Health,NHS Barnsley CCG,31/03/2018,C&M-PMS Prem Healthcentre Rent,PRC DELEGATED CO-COMMISSIONING,NHS BARNSLEY CCG GP PRACTICE,21217250,"2,989.52 "
Department of Health,NHS Barnsley CCG,31/03/2018,C&M-PMS Prem Notional Rent,PRC DELEGATED CO-COMMISSIONING,NHS BARNSLEY CCG GP PRACTICE,21217250,"8,600.00 "
Department of Health,NHS Barnsley CCG,31/03/2018,C&M-PMS Prem Rates,PRC DELEGATED CO-COMMISSIONING,NHS BARNSLEY CCG GP PRACTICE,21217250,"1,030.00 "
Department of Health,NHS Barnsley CCG,31/03/2018,C&M-PMS QOF Aspiration,PRC DELEGATED CO-COMMISSIONING,NHS BARNSLEY CCG GP PRACTICE,21217250,"2,711.68 "
Department of Health,NHS Barnsley CCG,31/03/2018,C&M-GMS GP Statutory Levy,PRC DELEGATED CO-COMMISSIONING,NHS BARNSLEY CCG GP PRACTICE,21495814,(450.35)
Department of Health,NHS Barnsley CCG,31/03/2018,C&M-GMS QOF Aspiration,PRC DELEGATED CO-COMMISSIONING,NHS BARNSLEY CCG GP PRACTICE,21495814,(419.24)
Department of Health,NHS Barnsley CCG,31/03/2018,C&M-GMS Voluntary Levy,PRC DELEGATED CO-COMMISSIONING,NHS BARNSLEY CCG GP PRACTICE,21495814,(78.77)
Department of Health,NHS Barnsley CCG,31/03/2018,ME - GMS GP Prior Year ERs,PRC DELEGATED CO-COMMISSIONING,NHS BARNSLEY CCG GP PRACTICE,21495814,"(5,757.80)"
Department of Health,NHS Barnsley CCG,31/03/2018,ME - GMS TPS Added Years Adj EEs,PRC DELEGATED CO-COMMISSIONING,NHS BARNSLEY CCG GP PRACTICE,21495814,(528.56)
Department of Health,NHS Barnsley CCG,31/03/2018,ME-GMS GP Pension EEs,PRC DELEGATED CO-COMMISSIONING,NHS BARNSLEY CCG GP PRACTICE,21495814,"(12,397.87)"
Department of Health,NHS Barnsley CCG,31/03/2018,ME-GMS GP Pension ERs Adjustments,PRC DELEGATED CO-COMMISSIONING,NHS BARNSLEY CCG GP PRACTICE,21495814,"(11,966.63)"
Department of Health,NHS Barnsley CCG,31/03/2018,ME-GMS GP Prior Year EEs,PRC DELEGATED CO-COMMISSIONING,NHS BARNSLEY CCG GP PRACTICE,21495814,"(5,805.85)"
Department of Health,NHS Barnsley CCG,31/03/2018,C&M-GMS DES Extended Hours Access,PRC DELEGATED CO-COMMISSIONING,NHS BARNSLEY CCG GP PRACTICE,21495815,"6,347.43 "
Department of Health,NHS Barnsley CCG,31/03/2018,C&M-GMS DES Learn Dsblty Hlth Chk,PRC DELEGATED CO-COMMISSIONING,NHS BARNSLEY CCG GP PRACTICE,21495815,"2,552.00 "
Department of Health,NHS Barnsley CCG,31/03/2018,C&M-GMS Dispensing Quality Sch,PRC DELEGATED CO-COMMISSIONING,NHS BARNSLEY CCG GP PRACTICE,21495815,"1,455.12 "
Department of Health,NHS Barnsley CCG,31/03/2018,C&M-GMS Global Sum,PRC DELEGATED CO-COMMISSIONING,NHS BARNSLEY CCG GP PRACTICE,21495815,"103,474.84 "
Department of Health,NHS Barnsley CCG,31/03/2018,C&M-GMS PCO Locum Adop/Pat/Mat,PRC DELEGATED CO-COMMISSIONING,NHS BARNSLEY CCG GP PRACTICE,21495815,"19,075.98 "
Department of Health,NHS Barnsley CCG,31/03/2018,C&M-GMS PCO Seniority,PRC DELEGATED CO-COMMISSIONING,NHS BARNSLEY CCG GP PRACTICE,21495815,"6,895.88 "
Department of Health,NHS Barnsley CCG,31/03/2018,C&M-GMS Prem Notional Rent,PRC DELEGATED CO-COMMISSIONING,NHS BARNSLEY CCG GP PRACTICE,21495815,"6,333.33 "
Department of Health,NHS Barnsley CCG,31/03/2018,C&M-GMS QOF Aspiration,PRC DELEGATED CO-COMMISSIONING,NHS BARNSLEY CCG GP PRACTICE,21495815,"11,180.37 "
Department of Health,NHS Barnsley CCG,31/03/2018,C&M-GMS GP Statutory Levy,PRC DELEGATED CO-COMMISSIONING,NHS BARNSLEY CCG GP PRACTICE,21474336,(395.49)
Department of Health,NHS Barnsley CCG,31/03/2018,C&M-GMS Global Sum,PRC DELEGATED CO-COMMISSIONING,NHS BARNSLEY CCG GP PRACTICE,21474336,"(14,256.00)"
Department of Health,NHS Barnsley CCG,31/03/2018,C&M-GMS Voluntary Levy,PRC DELEGATED CO-COMMISSIONING,NHS BARNSLEY CCG GP PRACTICE,21474336,(69.18)
Department of Health,NHS Barnsley CCG,31/03/2018,ME-GMS GP Pension EEs,PRC DELEGATED CO-COMMISSIONING,NHS BARNSLEY CCG GP PRACTICE,21474336,"(7,112.91)"
Department of Health,NHS Barnsley CCG,31/03/2018,ME-GMS GP Pension EEs Adjustments,PRC DELEGATED CO-COMMISSIONING,NHS BARNSLEY CCG GP PRACTICE,21474336,"(3,480.00)"
Department of Health,NHS Barnsley CCG,31/03/2018,ME-GMS GP Pension ERs Adjustments,PRC DELEGATED CO-COMMISSIONING,NHS BARNSLEY CCG GP PRACTICE,21474336,"(10,844.91)"
Department of Health,NHS Barnsley CCG,31/03/2018,ME-GMS GP Prior Year EEs,PRC DELEGATED CO-COMMISSIONING,NHS BARNSLEY CCG GP PRACTICE,21474336,"(13,322.13)"
Department of Health,NHS Barnsley CCG,31/03/2018,C&M-GMS DES Extended Hours Access,PRC DELEGATED CO-COMMISSIONING,NHS BARNSLEY CCG GP PRACTICE,21474337,"5,644.43 "
Department of Health,NHS Barnsley CCG,31/03/2018,C&M-GMS Global Sum,PRC DELEGATED CO-COMMISSIONING,NHS BARNSLEY CCG GP PRACTICE,21474337,"96,569.79 "
Department of Health,NHS Barnsley CCG,31/03/2018,C&M-GMS PCO Seniority,PRC DELEGATED CO-COMMISSIONING,NHS BARNSLEY CCG GP PRACTICE,21474337,"3,702.01 "
Department of Health,NHS Barnsley CCG,31/03/2018,C&M-GMS Prem Notional Rent,PRC DELEGATED CO-COMMISSIONING,NHS BARNSLEY CCG GP PRACTICE,21474337,"13,500.00 "
Department of Health,NHS Barnsley CCG,31/03/2018,C&M-GMS QOF Aspiration,PRC DELEGATED CO-COMMISSIONING,NHS BARNSLEY CCG GP PRACTICE,21474337,"9,956.81 "
Department of Health,NHS Barnsley CCG,31/03/2018,C&M-GMS GP Statutory Levy,PRC DELEGATED CO-COMMISSIONING,NHS BARNSLEY CCG GP PRACTICE,21495812,(364.30)
Department of Health,NHS Barnsley CCG,31/03/2018,C&M-GMS Prem Other,PRC DELEGATED CO-COMMISSIONING,NHS BARNSLEY CCG GP PRACTICE,21495812,"(16,780.00)"
Department of Health,NHS Barnsley CCG,31/03/2018,C&M-GMS QOF Aspiration,PRC DELEGATED CO-COMMISSIONING,NHS BARNSLEY CCG GP PRACTICE,21495812,"(1,451.25)"
Department of Health,NHS Barnsley CCG,31/03/2018,C&M-GMS Voluntary Levy,PRC DELEGATED CO-COMMISSIONING,NHS BARNSLEY CCG GP PRACTICE,21495812,(63.72)
Department of Health,NHS Barnsley CCG,31/03/2018,ME-GMS GP Pension EEs,PRC DELEGATED CO-COMMISSIONING,NHS BARNSLEY CCG GP PRACTICE,21495812,"(6,820.35)"
Department of Health,NHS Barnsley CCG,31/03/2018,ME-GMS GP Pension ERs Adjustments,PRC DELEGATED CO-COMMISSIONING,NHS BARNSLEY CCG GP PRACTICE,21495812,"(6,337.90)"
Department of Health,NHS Barnsley CCG,31/03/2018,C&M-GMS DES Extended Hours Access,PRC DELEGATED CO-COMMISSIONING,NHS BARNSLEY CCG GP PRACTICE,21495813,"5,167.05 "
Department of Health,NHS Barnsley CCG,31/03/2018,C&M-GMS Global Sum,PRC DELEGATED CO-COMMISSIONING,NHS BARNSLEY CCG GP PRACTICE,21495813,"90,404.86 "
Department of Health,NHS Barnsley CCG,31/03/2018,C&M-GMS PCO Locum Adop/Pat/Mat,PRC DELEGATED CO-COMMISSIONING,NHS BARNSLEY CCG GP PRACTICE,21495813,"10,661.72 "
Department of Health,NHS Barnsley CCG,31/03/2018,C&M-GMS PCO Seniority,PRC DELEGATED CO-COMMISSIONING,NHS BARNSLEY CCG GP PRACTICE,21495813,"3,456.05 "
Department of Health,NHS Barnsley CCG,31/03/2018,C&M-GMS Prem Healthcentre Rent,PRC DELEGATED CO-COMMISSIONING,NHS BARNSLEY CCG GP PRACTICE,21495813,"33,280.78 "
Department of Health,NHS Barnsley CCG,31/03/2018,C&M-GMS Prem Other,PRC DELEGATED CO-COMMISSIONING,NHS BARNSLEY CCG GP PRACTICE,21495813,"43,010.60 "
Department of Health,NHS Barnsley CCG,31/03/2018,C&M-GMS QOF Aspiration,PRC DELEGATED CO-COMMISSIONING,NHS BARNSLEY CCG GP PRACTICE,21495813,"9,868.55 "
Department of Health,NHS Barnsley CCG,31/03/2018,ME-GMS GP Pension EEs Adjustments,PRC DELEGATED CO-COMMISSIONING,NHS BARNSLEY CCG GP PRACTICE,21495813,"1,127.85 "
Department of Health,NHS Barnsley CCG,31/03/2018,ME-GMS GP Pension ERs Adjustments,PRC DELEGATED CO-COMMISSIONING,NHS BARNSLEY CCG GP PRACTICE,21495813,"1,201.35 "
Department of Health,NHS Barnsley CCG,31/03/2018,C&M-GMS DES Extended Hours Access,PRC DELEGATED CO-COMMISSIONING,NHS BARNSLEY CCG GP PRACTICE,21474339,"1,597.92 "
Department of Health,NHS Barnsley CCG,31/03/2018,C&M-GMS DES Learn Dsblty Hlth Chk,PRC DELEGATED CO-COMMISSIONING,NHS BARNSLEY CCG GP PRACTICE,21474339,"2,088.00 "
Department of Health,NHS Barnsley CCG,31/03/2018,C&M-GMS Global Sum,PRC DELEGATED CO-COMMISSIONING,NHS BARNSLEY CCG GP PRACTICE,21474339,"77,518.84 "
Department of Health,NHS Barnsley CCG,31/03/2018,C&M-GMS PCO Seniority,PRC DELEGATED CO-COMMISSIONING,NHS BARNSLEY CCG GP PRACTICE,21474339,"1,559.70 "
Department of Health,NHS Barnsley CCG,31/03/2018,C&M-GMS QOF Aspiration,PRC DELEGATED CO-COMMISSIONING,NHS BARNSLEY CCG GP PRACTICE,21474339,"10,562.04 "
Department of Health,NHS Barnsley CCG,31/03/2018,C&M-PMS Contract Value,PRC DELEGATED CO-COMMISSIONING,NHS BARNSLEY CCG GP PRACTICE,21217253,"(2,000.15)"
Department of Health,NHS Barnsley CCG,31/03/2018,C&M-PMS GP Statutory Levy,PRC DELEGATED CO-COMMISSIONING,NHS BARNSLEY CCG GP PRACTICE,21217253,(574.44)
Department of Health,NHS Barnsley CCG,31/03/2018,C&M-PMS Out of Hours Opt Outs,PRC DELEGATED CO-COMMISSIONING,NHS BARNSLEY CCG GP PRACTICE,21217253,"(6,852.89)"
Department of Health,NHS Barnsley CCG,31/03/2018,C&M-PMS Voluntary Levy,PRC DELEGATED CO-COMMISSIONING,NHS BARNSLEY CCG GP PRACTICE,21217253,(100.48)
Department of Health,NHS Barnsley CCG,31/03/2018,ME - PMS TPS Added Years Adj EEs,PRC DELEGATED CO-COMMISSIONING,NHS BARNSLEY CCG GP PRACTICE,21217253,(266.67)
Department of Health,NHS Barnsley CCG,31/03/2018,ME-PMS GP Pension EEs-PMS,PRC DELEGATED CO-COMMISSIONING,NHS BARNSLEY CCG GP PRACTICE,21217253,"(7,234.70)"
Department of Health,NHS Barnsley CCG,31/03/2018,ME-PMS GP Pension ERs Adjs - PMS,PRC DELEGATED CO-COMMISSIONING,NHS BARNSLEY CCG GP PRACTICE,21217253,"(7,981.42)"
Department of Health,NHS Barnsley CCG,31/03/2018,C&M-PMS Contract Value,PRC DELEGATED CO-COMMISSIONING,NHS BARNSLEY CCG GP PRACTICE,21217254,"140,229.36 "
Department of Health,NHS Barnsley CCG,31/03/2018,C&M-PMS DES Extended Hours Access,PRC DELEGATED CO-COMMISSIONING,NHS BARNSLEY CCG GP PRACTICE,21217254,"8,113.48 "
Department of Health,NHS Barnsley CCG,31/03/2018,C&M-PMS Funding Differential Review,PRC DELEGATED CO-COMMISSIONING,NHS BARNSLEY CCG GP PRACTICE,21217254,203.75 
Department of Health,NHS Barnsley CCG,31/03/2018,C&M-PMS Out of Hours Opt Outs,PRC DELEGATED CO-COMMISSIONING,NHS BARNSLEY CCG GP PRACTICE,21217254,98.99 
Department of Health,NHS Barnsley CCG,31/03/2018,C&M-PMS PCO Seniority,PRC DELEGATED CO-COMMISSIONING,NHS BARNSLEY CCG GP PRACTICE,21217254,"5,009.32 "
Department of Health,NHS Barnsley CCG,31/03/2018,C&M-PMS Prem Notional Rent,PRC DELEGATED CO-COMMISSIONING,NHS BARNSLEY CCG GP PRACTICE,21217254,"11,166.67 "
Department of Health,NHS Barnsley CCG,31/03/2018,C&M-PMS Prem Rates,PRC DELEGATED CO-COMMISSIONING,NHS BARNSLEY CCG GP PRACTICE,21217254,937.00 
Department of Health,NHS Barnsley CCG,31/03/2018,C&M-PMS QOF Aspiration,PRC DELEGATED CO-COMMISSIONING,NHS BARNSLEY CCG GP PRACTICE,21217254,"10,469.27 "
Department of Health,NHS Barnsley CCG,31/03/2018,C&M-PMS GP Statutory Levy,PRC DELEGATED CO-COMMISSIONING,NHS BARNSLEY CCG GP PRACTICE,21217255,(384.19)
Department of Health,NHS Barnsley CCG,31/03/2018,C&M-PMS Out of Hours Opt Outs,PRC DELEGATED CO-COMMISSIONING,NHS BARNSLEY CCG GP PRACTICE,21217255,"(4,686.14)"
Department of Health,NHS Barnsley CCG,31/03/2018,C&M-PMS Voluntary Levy,PRC DELEGATED CO-COMMISSIONING,NHS BARNSLEY CCG GP PRACTICE,21217255,(67.20)
Department of Health,NHS Barnsley CCG,31/03/2018,ME-PMS GP Pension EEs-PMS,PRC DELEGATED CO-COMMISSIONING,NHS BARNSLEY CCG GP PRACTICE,21217255,"(33,093.43)"
Department of Health,NHS Barnsley CCG,31/03/2018,ME-PMS GP Pension ERs Adjs - PMS,PRC DELEGATED CO-COMMISSIONING,NHS BARNSLEY CCG GP PRACTICE,21217255,"(34,765.04)"
Department of Health,NHS Barnsley CCG,31/03/2018,C&M-PMS Contract Value,PRC DELEGATED CO-COMMISSIONING,NHS BARNSLEY CCG GP PRACTICE,21217256,"94,782.61 "
Department of Health,NHS Barnsley CCG,31/03/2018,C&M-PMS DES Extended Hours Access,PRC DELEGATED CO-COMMISSIONING,NHS BARNSLEY CCG GP PRACTICE,21217256,"5,395.05 "
Department of Health,NHS Barnsley CCG,31/03/2018,C&M-PMS PCO Seniority,PRC DELEGATED CO-COMMISSIONING,NHS BARNSLEY CCG GP PRACTICE,21217256,"1,471.57 "
Department of Health,NHS Barnsley CCG,31/03/2018,C&M-PMS Prem Actual Rent,PRC DELEGATED CO-COMMISSIONING,NHS BARNSLEY CCG GP PRACTICE,21217256,"12,708.33 "
Department of Health,NHS Barnsley CCG,31/03/2018,C&M-PMS Prem Rates,PRC DELEGATED CO-COMMISSIONING,NHS BARNSLEY CCG GP PRACTICE,21217256,"2,207.00 "
Department of Health,NHS Barnsley CCG,31/03/2018,C&M-PMS QOF Aspiration,PRC DELEGATED CO-COMMISSIONING,NHS BARNSLEY CCG GP PRACTICE,21217256,"10,713.50 "
Department of Health,NHS Barnsley CCG,31/03/2018,C&M-PMS Contract Value,PRC DELEGATED CO-COMMISSIONING,NHS BARNSLEY CCG GP PRACTICE,21217257,"84,432.11 "
Department of Health,NHS Barnsley CCG,31/03/2018,C&M-PMS DES Extended Hours Access,PRC DELEGATED CO-COMMISSIONING,NHS BARNSLEY CCG GP PRACTICE,21217257,"5,220.73 "
Department of Health,NHS Barnsley CCG,31/03/2018,C&M-PMS DES Learn Dsblty Hlth Chk,PRC DELEGATED CO-COMMISSIONING,NHS BARNSLEY CCG GP PRACTICE,21217257,280.00 
Department of Health,NHS Barnsley CCG,31/03/2018,C&M-PMS PCO Seniority,PRC DELEGATED CO-COMMISSIONING,NHS BARNSLEY CCG GP PRACTICE,21217257,"1,518.86 "
Department of Health,NHS Barnsley CCG,31/03/2018,C&M-PMS Prem Actual Rent,PRC DELEGATED CO-COMMISSIONING,NHS BARNSLEY CCG GP PRACTICE,21217257,"8,566.67 "
Department of Health,NHS Barnsley CCG,31/03/2018,C&M-PMS QOF Aspiration,PRC DELEGATED CO-COMMISSIONING,NHS BARNSLEY CCG GP PRACTICE,21217257,"7,978.34 "
Department of Health,NHS Barnsley CCG,31/03/2018,C&M-PMS GP Statutory Levy,PRC DELEGATED CO-COMMISSIONING,NHS BARNSLEY CCG GP PRACTICE,21245255,(375.60)
Department of Health,NHS Barnsley CCG,31/03/2018,C&M-PMS Out of Hours Opt Outs,PRC DELEGATED CO-COMMISSIONING,NHS BARNSLEY CCG GP PRACTICE,21245255,"(4,174.80)"
Department of Health,NHS Barnsley CCG,31/03/2018,C&M-PMS Voluntary Levy,PRC DELEGATED CO-COMMISSIONING,NHS BARNSLEY CCG GP PRACTICE,21245255,(65.70)
Department of Health,NHS Barnsley CCG,31/03/2018,ME-PMS GP Pension EEs Adjs - PMS,PRC DELEGATED CO-COMMISSIONING,NHS BARNSLEY CCG GP PRACTICE,21245255,"(9,261.34)"
Department of Health,NHS Barnsley CCG,31/03/2018,ME-PMS GP Pension EEs-PMS,PRC DELEGATED CO-COMMISSIONING,NHS BARNSLEY CCG GP PRACTICE,21245255,"(4,608.30)"
Department of Health,NHS Barnsley CCG,31/03/2018,ME-PMS GP Pension ERs Adjs - PMS,PRC DELEGATED CO-COMMISSIONING,NHS BARNSLEY CCG GP PRACTICE,21245255,"(14,767.13)"
Department of Health,NHS Barnsley CCG,31/03/2018,C&M-GMS DES Extended Hours Access,PRC DELEGATED CO-COMMISSIONING,NHS BARNSLEY CCG GP PRACTICE,21474341,"3,218.60 "
Department of Health,NHS Barnsley CCG,31/03/2018,C&M-GMS DES Learn Dsblty Hlth Chk,PRC DELEGATED CO-COMMISSIONING,NHS BARNSLEY CCG GP PRACTICE,21474341,"1,820.00 "
Department of Health,NHS Barnsley CCG,31/03/2018,C&M-GMS Global Sum,PRC DELEGATED CO-COMMISSIONING,NHS BARNSLEY CCG GP PRACTICE,21474341,"55,515.73 "
Department of Health,NHS Barnsley CCG,31/03/2018,C&M-GMS PCO Seniority,PRC DELEGATED CO-COMMISSIONING,NHS BARNSLEY CCG GP PRACTICE,21474341,"3,049.96 "
Department of Health,NHS Barnsley CCG,31/03/2018,C&M-GMS Prem Healthcentre Rent,PRC DELEGATED CO-COMMISSIONING,NHS BARNSLEY CCG GP PRACTICE,21474341,"21,594.09 "
Department of Health,NHS Barnsley CCG,31/03/2018,C&M-GMS QOF Aspiration,PRC DELEGATED CO-COMMISSIONING,NHS BARNSLEY CCG GP PRACTICE,21474341,"6,288.65 "
Department of Health,NHS Barnsley CCG,31/03/2018,C&M-PMS Contract Value,PRC DELEGATED CO-COMMISSIONING,NHS BARNSLEY CCG GP PRACTICE,21217259,"99,023.49 "
Department of Health,NHS Barnsley CCG,31/03/2018,C&M-PMS DES Extended Hours Access,PRC DELEGATED CO-COMMISSIONING,NHS BARNSLEY CCG GP PRACTICE,21217259,"6,213.95 "
Department of Health,NHS Barnsley CCG,31/03/2018,C&M-PMS Out of Hours Opt Outs,PRC DELEGATED CO-COMMISSIONING,NHS BARNSLEY CCG GP PRACTICE,21217259,26.03 
Department of Health,NHS Barnsley CCG,31/03/2018,C&M-PMS PCO Locum Adop/Pat/Mat,PRC DELEGATED CO-COMMISSIONING,NHS BARNSLEY CCG GP PRACTICE,21217259,"21,339.46 "
Department of Health,NHS Barnsley CCG,31/03/2018,C&M-PMS PCO Seniority,PRC DELEGATED CO-COMMISSIONING,NHS BARNSLEY CCG GP PRACTICE,21217259,"5,482.01 "
Department of Health,NHS Barnsley CCG,31/03/2018,C&M-PMS Prem Actual Rent,PRC DELEGATED CO-COMMISSIONING,NHS BARNSLEY CCG GP PRACTICE,21217259,"4,227.00 "
Department of Health,NHS Barnsley CCG,31/03/2018,C&M-PMS QOF Aspiration,PRC DELEGATED CO-COMMISSIONING,NHS BARNSLEY CCG GP PRACTICE,21217259,"12,214.31 "
Department of Health,NHS Barnsley CCG,31/03/2018,C&M-GMS Global Sum,PRC DELEGATED CO-COMMISSIONING,NHS BARNSLEY CCG GP PRACTICE,21474345,"46,171.15 "
Department of Health,NHS Barnsley CCG,31/03/2018,C&M-GMS PCO Seniority,PRC DELEGATED CO-COMMISSIONING,NHS BARNSLEY CCG GP PRACTICE,21474345,"3,254.98 "
Department of Health,NHS Barnsley CCG,31/03/2018,C&M-GMS Prem Notional Rent,PRC DELEGATED CO-COMMISSIONING,NHS BARNSLEY CCG GP PRACTICE,21474345,"2,541.67 "
Department of Health,NHS Barnsley CCG,31/03/2018,C&M-GMS Prem Rates,PRC DELEGATED CO-COMMISSIONING,NHS BARNSLEY CCG GP PRACTICE,21474345,454.00 
Department of Health,NHS Barnsley CCG,31/03/2018,C&M-GMS Prem Water Rates,PRC DELEGATED CO-COMMISSIONING,NHS BARNSLEY CCG GP PRACTICE,21474345,149.21 
Department of Health,NHS Barnsley CCG,31/03/2018,C&M-GMS QOF Aspiration,PRC DELEGATED CO-COMMISSIONING,NHS BARNSLEY CCG GP PRACTICE,21474345,"4,060.06 "
Department of Health,NHS Barnsley CCG,31/03/2018,Apprenticeship Levy Payable,BALANCE SHEET,HMRC,21301806,695.00 
Department of Health,NHS Barnsley CCG,31/03/2018,Income tax <1Yr,BALANCE SHEET,HMRC,21301806,"58,484.11 "
Department of Health,NHS Barnsley CCG,31/03/2018,Income tax <1Yr-Student Loans,BALANCE SHEET,HMRC,21301806,"1,493.00 "
Department of Health,NHS Barnsley CCG,31/03/2018,National Insurance < 1 yr-NI- ERS,BALANCE SHEET,HMRC,21301806,"41,160.76 "
Department of Health,NHS Barnsley CCG,31/03/2018,National Insurance < 1 yr-NI-EES,BALANCE SHEET,HMRC,21301806,"29,533.13 "
Department of Health,NHS Barnsley CCG,31/03/2018,C&M-GMS DES Extended Hours Access,PRC DELEGATED CO-COMMISSIONING,NHS BARNSLEY CCG GP PRACTICE,21495816,"5,578.40 "
Department of Health,NHS Barnsley CCG,31/03/2018,C&M-GMS Global Sum,PRC DELEGATED CO-COMMISSIONING,NHS BARNSLEY CCG GP PRACTICE,21495816,"83,456.64 "
Department of Health,NHS Barnsley CCG,31/03/2018,C&M-GMS PCO Locum Adop/Pat/Mat,PRC DELEGATED CO-COMMISSIONING,NHS BARNSLEY CCG GP PRACTICE,21495816,"2,263.48 "
Department of Health,NHS Barnsley CCG,31/03/2018,C&M-GMS PCO Seniority,PRC DELEGATED CO-COMMISSIONING,NHS BARNSLEY CCG GP PRACTICE,21495816,"5,050.19 "
Department of Health,NHS Barnsley CCG,31/03/2018,C&M-GMS Prem Healthcentre Rent,PRC DELEGATED CO-COMMISSIONING,NHS BARNSLEY CCG GP PRACTICE,21495816,"22,577.78 "
Department of Health,NHS Barnsley CCG,31/03/2018,C&M-GMS Prem Notional Rent,PRC DELEGATED CO-COMMISSIONING,NHS BARNSLEY CCG GP PRACTICE,21495816,"1,375.00 "
Department of Health,NHS Barnsley CCG,31/03/2018,C&M-GMS QOF Aspiration,PRC DELEGATED CO-COMMISSIONING,NHS BARNSLEY CCG GP PRACTICE,21495816,"9,650.40 "
Department of Health,NHS Barnsley CCG,31/03/2018,C&M-PMS Contract Value,PRC DELEGATED CO-COMMISSIONING,NHS BARNSLEY CCG GP PRACTICE,21217261,"48,688.98 "
Department of Health,NHS Barnsley CCG,31/03/2018,C&M-PMS Funding Differential Review,PRC DELEGATED CO-COMMISSIONING,NHS BARNSLEY CCG GP PRACTICE,21217261,"1,500.83 "
Department of Health,NHS Barnsley CCG,31/03/2018,C&M-PMS Out of Hours Opt Outs,PRC DELEGATED CO-COMMISSIONING,NHS BARNSLEY CCG GP PRACTICE,21217261,10.19 
Department of Health,NHS Barnsley CCG,31/03/2018,C&M-PMS PCO Seniority,PRC DELEGATED CO-COMMISSIONING,NHS BARNSLEY CCG GP PRACTICE,21217261,"2,174.78 "
Department of Health,NHS Barnsley CCG,31/03/2018,C&M-PMS Prem Healthcentre Rent,PRC DELEGATED CO-COMMISSIONING,NHS BARNSLEY CCG GP PRACTICE,21217261,"6,045.20 "
Department of Health,NHS Barnsley CCG,31/03/2018,C&M-PMS Prem Notional Rent,PRC DELEGATED CO-COMMISSIONING,NHS BARNSLEY CCG GP PRACTICE,21217261,"3,583.33 "
Department of Health,NHS Barnsley CCG,31/03/2018,C&M-PMS QOF Aspiration,PRC DELEGATED CO-COMMISSIONING,NHS BARNSLEY CCG GP PRACTICE,21217261,"4,640.02 "
Department of Health,NHS Barnsley CCG,31/03/2018,External Data Contracts,BUSINESS INFORMATICS,KIER BUSINESS SERVICES LTD,21330722,"14,111.00 "
Department of Health,NHS Barnsley CCG,31/03/2018,External Data Contracts,COMMISSIONING SCHEMES,KIER BUSINESS SERVICES LTD,21330722,"15,218.00 "
Department of Health,NHS Barnsley CCG,31/03/2018,Telecoms-Data lines,PRIMARY CARE IT,KIER BUSINESS SERVICES LTD,21330722,"49,324.00 "
Department of Health,NHS Barnsley CCG,31/03/2018,External Data Contracts,BUSINESS INFORMATICS,KIER BUSINESS SERVICES LTD,21407787,"14,111.00 "
Department of Health,NHS Barnsley CCG,31/03/2018,External Data Contracts,COMMISSIONING SCHEMES,KIER BUSINESS SERVICES LTD,21407787,"15,218.00 "
Department of Health,NHS Barnsley CCG,31/03/2018,Telecoms-Data lines,PRIMARY CARE IT,KIER BUSINESS SERVICES LTD,21407787,"49,324.00 "
Department of Health,NHS Barnsley CCG,31/03/2018,C&M-PMS Baseline Adjustment,PRC DELEGATED CO-COMMISSIONING,NHS BARNSLEY CCG GP PRACTICE,21222388,693.00 
Department of Health,NHS Barnsley CCG,31/03/2018,C&M-PMS Contract Value,PRC DELEGATED CO-COMMISSIONING,NHS BARNSLEY CCG GP PRACTICE,21222388,"27,222.22 "
Department of Health,NHS Barnsley CCG,31/03/2018,C&M-PMS PCO Seniority,PRC DELEGATED CO-COMMISSIONING,NHS BARNSLEY CCG GP PRACTICE,21222388,"2,001.83 "
Department of Health,NHS Barnsley CCG,31/03/2018,C&M-PMS Prem Notional Rent,PRC DELEGATED CO-COMMISSIONING,NHS BARNSLEY CCG GP PRACTICE,21222388,"4,458.33 "
Department of Health,NHS Barnsley CCG,31/03/2018,C&M-PMS QOF Aspiration,PRC DELEGATED CO-COMMISSIONING,NHS BARNSLEY CCG GP PRACTICE,21222388,"2,071.11 "
Department of Health,NHS Barnsley CCG,31/03/2018,C&M-APMS Contract Value,PRC DELEGATED CO-COMMISSIONING,NHS BARNSLEY CCG GP PRACTICE,21217265,"18,989.29 "
Department of Health,NHS Barnsley CCG,31/03/2018,C&M-APMS OOH Opt Outs,PRC DELEGATED CO-COMMISSIONING,NHS BARNSLEY CCG GP PRACTICE,21217265,8.14 
Department of Health,NHS Barnsley CCG,31/03/2018,C&M-APMS Prem Healthcentre Rent,PRC DELEGATED CO-COMMISSIONING,NHS BARNSLEY CCG GP PRACTICE,21217265,"4,802.71 "
Department of Health,NHS Barnsley CCG,31/03/2018,C&M-PMS Prem Healthcentre Rent,PRC DELEGATED CO-COMMISSIONING,NHS BARNSLEY CCG GP PRACTICE,21217265,"4,756.91 "
Department of Health,NHS Barnsley CCG,31/03/2018,C&M-PMS QOF Aspiration,PRC DELEGATED CO-COMMISSIONING,NHS BARNSLEY CCG GP PRACTICE,21217265,"1,598.13 "
Department of Health,NHS Barnsley CCG,31/03/2018,Cont Care- Prior Year Payments,CHC ADULT FULLY FUNDED,LEICESTERSHIRE PARTNERSHIP NHS TRUST,21404614,"61,864.45 "
Department of Health,NHS Barnsley CCG,31/03/2018,Cont Care- Prior Year Payments,CHC ADULT FULLY FUNDED,LEICESTERSHIRE PARTNERSHIP NHS TRUST,21404666,"(30,932.23)"
Department of Health,NHS Barnsley CCG,31/03/2018,Hcare Srv Rec NHS Trust-CQUIN,ACUTE COMMISSIONING,MID YORKSHIRE HOSPITALS NHS TRUST,21147657,"2,197.00 "
Department of Health,NHS Barnsley CCG,31/03/2018,Hcare Srv Rec NHS Trust-Contract Baseline,ACUTE COMMISSIONING,MID YORKSHIRE HOSPITALS NHS TRUST,21147657,"206,053.00 "
Department of Health,NHS Barnsley CCG,31/03/2018,Clinical&Medical-Commercial Sector,ACUTE COMMISSIONING,ONEHEALTH GROUP,21330701,"189,723.75 "
Department of Health,NHS Barnsley CCG,31/03/2018,Clinical&Medical-Commercial Sector,ACUTE COMMISSIONING,PAIN MANAGEMENT SOLUTIONS LTD,21330619,"28,943.78 "
Department of Health,NHS Barnsley CCG,31/03/2018,Other Gen Supplies & Srv,PATIENT TRANSPORT,PREMIER CARE DIRECT LTD,21330569,"28,557.10 "
Department of Health,NHS Barnsley CCG,31/03/2018,Hcare Srv Rec Fdtn Trust-CQUIN,MENTAL HEALTH CONTRACTS,ROTHERHAM DONCASTER & SOUTH HUMBER MENTAL HEALTH NHS FOUNDATION TRUST,21168394,425.50 
Department of Health,NHS Barnsley CCG,31/03/2018,Hcare Srv Rec Fdtn Trust-Contract Baseline,MENTAL HEALTH CONTRACTS,ROTHERHAM DONCASTER & SOUTH HUMBER MENTAL HEALTH NHS FOUNDATION TRUST,21168394,"34,043.08 "
Department of Health,NHS Barnsley CCG,31/03/2018,Cont Care-Learning Disab(<65),CHC ADULT FULLY FUNDED,ROTHERHAM METROPOLITAN BOROUGH COUNCIL,21330729,"39,091.76 "
Department of Health,NHS Barnsley CCG,31/03/2018,Hcare Srv Rec Fdtn Trust-CQUIN,ACUTE COMMISSIONING,ROTHERHAM NHS FOUNDATION TRUST,21147525,"5,842.00 "
Department of Health,NHS Barnsley CCG,31/03/2018,Hcare Srv Rec Fdtn Trust-Contract Baseline,ACUTE COMMISSIONING,ROTHERHAM NHS FOUNDATION TRUST,21147525,"420,949.00 "
Department of Health,NHS Barnsley CCG,31/03/2018,Hcare Srv Rec Fdtn Trust-CQUIN,COMMUNITY SERVICES,ROTHERHAM NHS FOUNDATION TRUST,21147526,"1,020.00 "
Department of Health,NHS Barnsley CCG,31/03/2018,Hcare Srv Rec Fdtn Trust-Contract Baseline,COMMUNITY SERVICES,ROTHERHAM NHS FOUNDATION TRUST,21147526,"40,787.00 "
Department of Health,NHS Barnsley CCG,31/03/2018,Hcare Srv Rec Fdtn Trust-CQUIN,ACUTE COMMISSIONING,ROTHERHAM NHS FOUNDATION TRUST,21555586,"40,637.00 "
Department of Health,NHS Barnsley CCG,31/03/2018,Hcare Srv Rec Fdtn Trust-Contract Baseline,ACUTE COMMISSIONING,ROTHERHAM NHS FOUNDATION TRUST,21555586,"(352,751.00)"
Department of Health,NHS Barnsley CCG,31/03/2018,C&M-GMS DES Extended Hours Access,PRC DELEGATED CO-COMMISSIONING,NHS BARNSLEY CCG GP PRACTICE,21473559,"3,830.88 "
Department of Health,NHS Barnsley CCG,31/03/2018,C&M-GMS Global Sum,PRC DELEGATED CO-COMMISSIONING,NHS BARNSLEY CCG GP PRACTICE,21473559,"59,311.00 "
Department of Health,NHS Barnsley CCG,31/03/2018,C&M-GMS PCO Seniority,PRC DELEGATED CO-COMMISSIONING,NHS BARNSLEY CCG GP PRACTICE,21473559,"2,172.47 "
Department of Health,NHS Barnsley CCG,31/03/2018,C&M-GMS Prem Actual Rent,PRC DELEGATED CO-COMMISSIONING,NHS BARNSLEY CCG GP PRACTICE,21473559,"8,873.23 "
Department of Health,NHS Barnsley CCG,31/03/2018,C&M-GMS Prem Rates,PRC DELEGATED CO-COMMISSIONING,NHS BARNSLEY CCG GP PRACTICE,21473559,"1,081.00 "
Department of Health,NHS Barnsley CCG,31/03/2018,C&M-GMS QOF Aspiration,PRC DELEGATED CO-COMMISSIONING,NHS BARNSLEY CCG GP PRACTICE,21473559,"7,778.41 "
Department of Health,NHS Barnsley CCG,28/02/2018,Hcare Srv Rec Fdtn Trust-Contract Baseline,ACUTE COMMISSIONING,SHEFFIELD TEACHING HOSPITALS NHS FOUNDATION TRUST,21099077,"(69,297.00)"
Department of Health,NHS Barnsley CCG,28/02/2018,Hcare Srv Rec Fdtn Trust-Contract Baseline,ACUTE COMMISSIONING,SHEFFIELD TEACHING HOSPITALS NHS FOUNDATION TRUST,21099081,"174,257.00 "
Department of Health,NHS Barnsley CCG,28/02/2018,Hcare Srv Rec Fdtn Trust-Contract Baseline,ACUTE COMMISSIONING,SHEFFIELD TEACHING HOSPITALS NHS FOUNDATION TRUST,21099082,"1,852,829.00 "
Department of Health,NHS Barnsley CCG,28/02/2018,Hcare Srv Rec Fdtn Trust-Contract Baseline,ACUTE COMMISSIONING,SHEFFIELD TEACHING HOSPITALS NHS FOUNDATION TRUST,21099083,"65,287.00 "
Department of Health,NHS Barnsley CCG,31/03/2018,Hlthcre-Foundation Trsts,COMMUNITY SERVICES,SOUTH WEST YORKSHIRE PARTNERSHIP NHS FOUNDATION TRUST,21147637,"586,546.00 "
Department of Health,NHS Barnsley CCG,31/03/2018,Hcare Srv Rec Fdtn Trust-CQUIN,COMMUNITY SERVICES,SOUTH WEST YORKSHIRE PARTNERSHIP NHS FOUNDATION TRUST,21225583,"20,426.21 "
Department of Health,NHS Barnsley CCG,31/03/2018,Hcare Srv Rec Fdtn Trust-CQUIN,MENTAL HEALTH SERVICES - ADULTS,SOUTH WEST YORKSHIRE PARTNERSHIP NHS FOUNDATION TRUST,21225583,"2,646.96 "
Department of Health,NHS Barnsley CCG,31/03/2018,Hcare Srv Rec Fdtn Trust-CQUIN,MENTAL HEALTH SERVICES - OLDER PEOPLE,SOUTH WEST YORKSHIRE PARTNERSHIP NHS FOUNDATION TRUST,21225583,"26,218.83 "
Department of Health,NHS Barnsley CCG,31/03/2018,Hcare Srv Rec Fdtn Trust-Contract Baseline,COMMUNITY SERVICES,SOUTH WEST YORKSHIRE PARTNERSHIP NHS FOUNDATION TRUST,21225583,"1,406,004.50 "
Department of Health,NHS Barnsley CCG,31/03/2018,Hcare Srv Rec Fdtn Trust-Contract Baseline,LEARNING DIFFICULTIES,SOUTH WEST YORKSHIRE PARTNERSHIP NHS FOUNDATION TRUST,21225583,"264,223.25 "
Department of Health,NHS Barnsley CCG,31/03/2018,Hcare Srv Rec Fdtn Trust-Contract Baseline,MENTAL HEALTH SERVICES - ADULTS,SOUTH WEST YORKSHIRE PARTNERSHIP NHS FOUNDATION TRUST,21225583,"233,736.00 "
Department of Health,NHS Barnsley CCG,31/03/2018,Hcare Srv Rec Fdtn Trust-Contract Baseline,MENTAL HEALTH SERVICES - OLDER PEOPLE,SOUTH WEST YORKSHIRE PARTNERSHIP NHS FOUNDATION TRUST,21225583,"2,146,829.00 "
Department of Health,NHS Barnsley CCG,31/03/2018,Hcare Srv Rec Fdtn Trust-Contract Baseline,COMMUNITY SERVICES,SOUTH WEST YORKSHIRE PARTNERSHIP NHS FOUNDATION TRUST,21330544,"(50,106.51)"
Department of Health,NHS Barnsley CCG,31/03/2018,Hcare Srv Rec Fdtn Trust-Contract Baseline,LONG TERM CONDITIONS,SOUTH WEST YORKSHIRE PARTNERSHIP NHS FOUNDATION TRUST,21377847,"103,528.00 "
Department of Health,NHS Barnsley CCG,31/03/2018,Clinical&Medical-Serv Recd-F Trsts,INTERMEDIATE CARE,SOUTH WEST YORKSHIRE PARTNERSHIP NHS FOUNDATION TRUST,21377855,"42,005.25 "
Department of Health,NHS Barnsley CCG,31/03/2018,Clinical&Medical-Serv Recd-F Trsts,INTERMEDIATE CARE,SOUTH WEST YORKSHIRE PARTNERSHIP NHS FOUNDATION TRUST,21377859,"1,202,052.00 "
Department of Health,NHS Barnsley CCG,31/03/2018,Clinical&Medical-Commercial Sector,NCAS/OATS,SPAMEDICA LTD,21427443,"52,868.05 "
Department of Health,NHS Barnsley CCG,31/03/2018,C&M-PMS Contract Value,PRC DELEGATED CO-COMMISSIONING,NHS BARNSLEY CCG GP PRACTICE,21217263,"71,540.58 "
Department of Health,NHS Barnsley CCG,31/03/2018,C&M-PMS Out of Hours Opt Outs,PRC DELEGATED CO-COMMISSIONING,NHS BARNSLEY CCG GP PRACTICE,21217263,34.92 
Department of Health,NHS Barnsley CCG,31/03/2018,C&M-PMS PCO Seniority,PRC DELEGATED CO-COMMISSIONING,NHS BARNSLEY CCG GP PRACTICE,21217263,"2,584.51 "
Department of Health,NHS Barnsley CCG,31/03/2018,C&M-PMS Prem Actual Rent,PRC DELEGATED CO-COMMISSIONING,NHS BARNSLEY CCG GP PRACTICE,21217263,336.75 
Department of Health,NHS Barnsley CCG,31/03/2018,C&M-PMS Prem Healthcentre Rent,PRC DELEGATED CO-COMMISSIONING,NHS BARNSLEY CCG GP PRACTICE,21217263,"17,485.37 "
Department of Health,NHS Barnsley CCG,31/03/2018,C&M-PMS QOF Aspiration,PRC DELEGATED CO-COMMISSIONING,NHS BARNSLEY CCG GP PRACTICE,21217263,"6,823.95 "
Department of Health,NHS Barnsley CCG,31/03/2018,C&M-PMS Contract Value,PRC DELEGATED CO-COMMISSIONING,NHS BARNSLEY CCG GP PRACTICE,21222385,"41,124.21 "
Department of Health,NHS Barnsley CCG,31/03/2018,C&M-PMS DES Extended Hours Access,PRC DELEGATED CO-COMMISSIONING,NHS BARNSLEY CCG GP PRACTICE,21222385,"2,244.85 "
Department of Health,NHS Barnsley CCG,31/03/2018,C&M-PMS Prem Healthcentre Rent,PRC DELEGATED CO-COMMISSIONING,NHS BARNSLEY CCG GP PRACTICE,21222385,"1,189.84 "
Department of Health,NHS Barnsley CCG,31/03/2018,C&M-PMS Prem Rates,PRC DELEGATED CO-COMMISSIONING,NHS BARNSLEY CCG GP PRACTICE,21222385,"1,350.00 "
Department of Health,NHS Barnsley CCG,31/03/2018,C&M-PMS Prem Water Rates,PRC DELEGATED CO-COMMISSIONING,NHS BARNSLEY CCG GP PRACTICE,21222385,274.87 
Department of Health,NHS Barnsley CCG,31/03/2018,C&M-PMS QOF Aspiration,PRC DELEGATED CO-COMMISSIONING,NHS BARNSLEY CCG GP PRACTICE,21222385,"4,470.13 "
Department of Health,NHS Barnsley CCG,31/03/2018,Hcare Srv Rec NHS Trust-Contract Baseline,NHS 111,YORKSHIRE AMBULANCE SERVICE NHS TRUST,21147604,"49,017.33 "
Department of Health,NHS Barnsley CCG,31/03/2018,Hcare Srv Rec NHS Trust-Contract Baseline,AMBULANCE SERVICES,YORKSHIRE AMBULANCE SERVICE NHS TRUST,21147607,"627,034.00 "
Department of Health,NHS Barnsley CCG,31/03/2018,Hcare Srv Rec NHS Trust-Contract Baseline,PATIENT TRANSPORT,YORKSHIRE AMBULANCE SERVICE NHS TRUST,21147614,"129,241.20 "
,,,,,,,"32,489,108.20 "
